[Event "9th RTU Open 2019"]
[Site "Riga"]
[Date "2019.08.05"]
[Round "1.2"]
[White "Raghavi, N.."]
[Black "Hovhannisyan, Robert"]
[Result "0-1"]
[ECO "C84"]
[WhiteElo "2290"]
[BlackElo "2640"]
[Annotator "RC"]
[PlyCount "76"]
[EventDate "2019.08.05"]
[EventType "swiss"]
[EventCountry "LAT"]
[TimeControl "5400+30"]

1. e4 {[%emt 0:00:00]} e5 {[%emt 0:00:00]} 2. Nf3 {[%emt 0:00:29]} Nc6 {[%emt 0:00:00]} 3. Bb5 {[%emt 0:01:03]} a6 {[%emt 0:00:00]} 4. Ba4 {[%emt 0:00:12]} Nf6 {[%emt 0:00:06]} 5. O-O {[%emt 0:00:42]} Be7 {[%emt 0:00:23]} 6. d3 {[%emt 0:01:16]} b5 {[%emt 0:00:23]} 7. Bb3 {[%emt 0:00:07]} O-O {[%emt 0:00:12]} 8. a4 {[%emt 0:02:34]} b4 {[%emt 0:03:30]} 9. Nbd2 {[%emt 0:01:23]} Bc5 {[%emt 0:00:31]} 10. Nc4 {[%emt 0:02:39]} d6 {[%emt 0:12:08]} 11. h3 {[%emt 0:09:04]} Be6 {[%emt 0:00:00]} 12. c3 {[%emt 0:11:18]} bxc3 {[%emt 0:00:00]} 13. bxc3 {[%emt 0:00:08]} Rb8 {[%emt 0:00:00]} 14. Ba2 {[%emt 0:02:46]} Ba7 {[%emt 0:00:00]} 15. Ng5 {[%emt 0:06:03]} Bd7 {[%emt 0:00:00]} 16. Be3 {[%emt 0:02:29]} Bxe3 {[%emt 0:00:16]} 17. Nxe3 {[%emt 0:02:22]} h6 {[%emt 0:00:51]} 18. Nf3 {[%emt 0:00:18]} Na5 {[%emt 0:06:00]} 19. Nd2 {[%emt 0:07:55]} Qe8 {[%emt 0:03:51]} 20. Bb1 {[%emt 0:00:41]} Be6 {[%emt 0:13:03]} 21. d4 {[%emt 0:22:19]} Qc6 {[%emt 0:07:20]} 22. Ra3 {[%emt 0:00:17]} Qb6 {[%emt 0:02:11]} 23. Nf3 {[%emt 0:04:29]} Rfe8 {[%emt 0:05:04]} 24. Bd3 {[%emt 0:07:23]} c5 {[%emt 0:09:32]} 25. dxe5 {[%emt 0:09:20]} dxe5 {[%emt 0:00:06]} 26. Qe2 {[%emt 0:00:03]} c4 {[%emt 0:01:22]} 27. Bb1 {[%emt 0:01:28]} Qc5 {[%emt 0:02:57]} 28. Ra2 {[%emt 0:01:26]} Rb3 {[%emt 0:01:26]} 29. Qd2 {[%emt 0:00:23]} Nb7 {[%emt 0:02:52]} 30. Bc2 {[%emt 0:00:50]} Rd8 {[%emt 0:00:52]} 31. Qc1 {[%emt 0:02:06]} Rxc3 {[%emt 0:02:03]} 32. Nd1 {[%emt 0:00:25]} Rxf3 {[%emt 0:02:15]} 33. gxf3 {[%emt 0:00:12]} Nh5 {[%emt 0:00:23]} 34. Qa3 {[%emt 0:01:15]} Qc6 {[%emt 0:01:36]} 35. f4 {[%emt 0:00:52]} Nxf4 {[%emt 0:00:30]} 36. Kh2 {[%emt 0:00:30]} c3 {[%emt 0:01:56]} 37. Ra1 {[%emt 0:00:56]} Rd2 {[%emt 0:00:31]} 38. Rc1 {[%emt 0:00:16]} Ne2 {[%emt 0:05:07]} 0-1

[Event "9th RTU Open 2019"]
[Site "Riga"]
[Date "2019.08.05"]
[Round "1.20"]
[White "Krustkalns, Kristaps"]
[Black "Gukesh D"]
[Result "0-1"]
[ECO "B33"]
[WhiteElo "2203"]
[BlackElo "2520"]
[Annotator "RC"]
[PlyCount "62"]
[EventDate "2019.08.05"]
[EventType "swiss"]
[EventCountry "LAT"]
[TimeControl "5400+30"]

1. e4 {[%emt 0:00:00]} c5 {[%emt 0:01:24]} 2. Nf3 {[%emt 0:00:00]} Nc6 {[%emt 0:00:18]} 3. d4 {[%emt 0:00:49]} cxd4 {[%emt 0:00:11]} 4. Nxd4 {[%emt 0:00:11]} Nf6 {[%emt 0:01:12]} 5. Nc3 {[%emt 0:00:39]} e5 {[%emt 0:00:21]} 6. Ndb5 {[%emt 0:00:23]} d6 {[%emt 0:00:16]} 7. Bg5 {[%emt 0:01:56]} a6 {[%emt 0:00:06]} 8. Na3 {[%emt 0:00:58]} b5 {[%emt 0:00:05]} 9. Bxf6 {[%emt 0:00:57]} gxf6 {[%emt 0:00:07]} 10. Nd5 {[%emt 0:00:14]} f5 {[%emt 0:04:45]} 11. Bd3 {[%emt 0:03:15]} Be6 {[%emt 0:01:21]} 12. c3 {[%emt 0:00:42]} Bg7 {[%emt 0:08:30]} 13. Qh5 {[%emt 0:01:45]} f4 {[%emt 0:17:02]} 14. O-O {[%emt 0:13:56]} O-O {[%emt 0:08:48]} 15. Nc2 {[%emt 0:02:14]} f5 {[%emt 0:06:10]} 16. a4 {[%emt 0:07:43]} Bxd5 {[%emt 0:05:51]} 17. exd5 {[%emt 0:00:30]} Ne7 {[%emt 0:00:13]} 18. axb5 {[%emt 0:01:34]} e4 {[%emt 0:00:36]} 19. Bc4 {[%emt 0:06:24]} axb5 {[%emt 0:01:01]} 20. Bxb5 {[%emt 0:02:15]} Rb8 {[%emt 0:11:04]} 21. c4 {[%emt 0:04:29]} Nxd5 {[%emt 0:01:12]} 22. Ra7 {[%emt 0:03:21]} Nc7 {[%emt 0:03:46]} 23. Nb4 {[%emt 0:05:33]} Nxb5 {[%emt 0:01:00]} 24. cxb5 {[%emt 0:00:09]} Rxb5 {[%emt 0:01:20]} 25. Nc6 {[%emt 0:06:35]} Qf6 {[%emt 0:00:48]} 26. b4 {[%emt 0:02:13]} Kh8 {[%emt 0:11:30]} 27. Qe2 {[%emt 0:03:09]} Rb6 {[%emt 0:00:11]} 28. Ne7 {[%emt 0:02:58]} Rxb4 {[%emt 0:05:28]} 29. Qd2 {[%emt 0:01:09]} Qd4 {[%emt 0:03:53]} 30. Qa2 {[%emt 0:01:40]} Rb2 {[%emt 0:01:07]} 31. Qa5 {[%emt 0:00:08]} Qxf2+ {[%emt 0:00:12]} 0-1

[Event "9th RTU Open 2019"]
[Site "Riga"]
[Date "2019.08.05"]
[Round "1.26"]
[White "Damen, Jip"]
[Black "Grigorov, Grigor"]
[Result "0-1"]
[ECO "C01"]
[WhiteElo "2179"]
[BlackElo "2501"]
[Annotator "RC"]
[PlyCount "74"]
[EventDate "2019.08.05"]
[EventType "swiss"]
[EventCountry "LAT"]
[TimeControl "5400+30"]

1. e4 {[%emt 0:00:00]} e6 {[%emt 0:00:00]} 2. d4 {[%emt 0:00:00]} d5 {[%emt 0:00:04]} 3. Nc3 {[%emt 0:00:11]} Bb4 {[%emt 0:00:07]} 4. exd5 {[%emt 0:00:21]} exd5 {[%emt 0:00:09]} 5. Bd3 {[%emt 0:00:03]} Nc6 {[%emt 0:01:29]} 6. a3 {[%emt 0:00:40]} Bxc3+ {[%emt 0:00:22]} 7. bxc3 {[%emt 0:00:04]} Nge7 {[%emt 0:00:07]} 8. Qf3 {[%emt 0:01:38]} Be6 {[%emt 0:00:17]} 9. Nh3 {[%emt 0:00:49]} Qd7 {[%emt 0:04:39]} 10. Ng5 {[%emt 0:00:50]} Bf5 {[%emt 0:04:23]} 11. O-O {[%emt 0:06:04]} O-O {[%emt 0:06:14]} 12. Re1 {[%emt 0:02:49]} h6 {[%emt 0:01:28]} 13. Bxf5 {[%emt 0:01:03]} Qxf5 {[%emt 0:03:49]} 14. Qxf5 {[%emt 0:00:07]} Nxf5 {[%emt 0:00:06]} 15. Nf3 {[%emt 0:00:14]} g5 {[%emt 0:04:09]} 16. h4 {[%emt 0:01:11]} f6 {[%emt 0:00:30]} 17. Rb1 {[%emt 0:01:50]} Nd6 {[%emt 0:08:20]} 18. Be3 {[%emt 0:09:36]} Rae8 {[%emt 0:05:20]} 19. Nd2 {[%emt 0:03:00]} b6 {[%emt 0:10:41]} 20. hxg5 {[%emt 0:01:14]} hxg5 {[%emt 0:00:11]} 21. f3 {[%emt 0:00:23]} Na5 {[%emt 0:01:01]} 22. Bf2 {[%emt 0:01:17]} Nac4 {[%emt 0:06:00]} 23. Nxc4 {[%emt 0:00:51]} Nxc4 {[%emt 0:00:09]} 24. a4 {[%emt 0:00:21]} Rxe1+ {[%emt 0:00:14]} 25. Rxe1 {[%emt 0:01:15]} Nb2 {[%emt 0:00:21]} 26. Ra1 {[%emt 0:03:02]} a5 {[%emt 0:00:18]} 27. Bg3 {[%emt 0:00:21]} Rf7 {[%emt 0:00:13]} 28. f4 {[%emt 0:12:03]} Kg7 {[%emt 0:08:04]} 29. Kf2 {[%emt 0:08:25]} Kg6 {[%emt 0:00:28]} 30. Kf3 {[%emt 0:06:03]} Nc4 {[%emt 0:02:05]} 31. Rd1 {[%emt 0:01:51]} g4+ {[%emt 0:01:14]} 32. Kf2 {[%emt 0:00:17]} Re7 {[%emt 0:00:15]} 33. Rh1 {[%emt 0:12:22]} Nd2 {[%emt 0:08:39]} 34. Rh4 {[%emt 0:02:13]} f5 {[%emt 0:00:16]} 35. Kg1 {[%emt 0:01:23]} Re3 {[%emt 0:00:16]} 36. Bf2 {[%emt 0:00:29]} Rxc3 {[%emt 0:00:07]} 37. Rh8 {[%emt 0:00:21]} Rxc2 {[%emt 0:00:19]} 0-1

[Event "9th RTU Open 2019"]
[Site "Riga"]
[Date "2019.08.05"]
[Round "1.33"]
[White "Zanan, Evgeny"]
[Black "Wartiovaara, Oliver"]
[Result "1-0"]
[ECO "A45"]
[WhiteElo "2505"]
[BlackElo "2170"]
[Annotator "ChessBase"]
[PlyCount "47"]
[EventDate "2019.08.05"]
[EventType "swiss"]
[EventCountry "LAT"]
[SourceTitle "playchess.com"]
[Source "ChessBase"]
[SourceQuality "1"]
[TimeControl "5400+30"]

1. d4 {[%emt 0:03:13]} Nf6 {[%emt 0:00:00]} 2. Bf4 {[%emt 0:00:04]} g6 {[%emt 0:00:12]} 3. Nc3 {[%emt 0:00:04]} d5 {[%emt 0:00:07]} 4. e3 {[%emt 0:00:10]} Bg7 {[%emt 0:00:29]} 5. Nb5 {[%emt 0:01:12]} Na6 {[%emt 0:01:04]} 6. h3 {[%emt 0:00:18]} c6 {[%emt 0:04:41]} 7. Nc3 {[%emt 0:01:51]} Nc7 {[%emt 0:05:46]} 8. Nf3 {[%emt 0:00:11]} O-O {[%emt 0:00:40]} 9. Be2 {[%emt 0:07:10]} Re8 {[%emt 0:16:51]} 10. O-O {[%emt 0:04:29]} Ne4 {[%emt 0:05:21]} 11. Nxe4 {[%emt 0:13:24]} dxe4 {[%emt 0:00:06]} 12. Ne5 {[%emt 0:01:26]} f6 {[%emt 0:06:48]} 13. Nc4 {[%emt 0:00:38]} b5 {[%emt 0:06:16]} 14. Nd2 {[%emt 0:00:49]} f5 {[%emt 0:02:49]} 15. c4 {[%emt 0:05:06]} e5 {[%emt 0:06:04]} 16. dxe5 {[%emt 0:01:14]} Bxe5 {[%emt 0:02:00]} 17. Bxe5 {[%emt 0:00:15]} Rxe5 {[%emt 0:00:06]} 18. Nb3 {[%emt 0:03:29]} Qf6 {[%emt 0:09:50]} 19. cxb5 {[%emt 0:06:42]} cxb5 {[%emt 0:02:59]} 20. Rc1 {[%emt 0:02:16]} Nd5 {[%emt 0:06:21]} 21. Qd4 {[%emt 0:14:38]} f4 {[%emt 0:05:28]} 22. Rc5 {[%emt 0:00:58]} Qg5 {[%emt 0:02:21]} 23. h4 {[%emt 0:00:36]} Qf6 {[%emt 0:04:28]} 24. Rxd5 {[%emt 0:00:07]} 1-0

[Event "9th RTU Open 2019"]
[Site "Riga"]
[Date "2019.08.06"]
[Round "2.1"]
[White "Hedman, Erik"]
[Black "Kovalenko, Igor"]
[Result "0-1"]
[ECO "E73"]
[WhiteElo "2373"]
[BlackElo "2654"]
[Annotator "ChessBase"]
[PlyCount "68"]
[EventDate "2019.08.05"]
[EventType "swiss"]
[EventCountry "LAT"]
[SourceTitle "playchess.com"]
[Source "ChessBase"]
[SourceQuality "1"]
[TimeControl "5400+30"]

1. d4 {[%emt 0:00:20]} Nf6 {[%emt 0:02:46]} 2. c4 {[%emt 0:00:26]} g6 {[%emt 0:00:42]} 3. Nc3 {[%emt 0:00:40]} Bg7 {[%emt 0:00:03]} 4. e4 {[%emt 0:00:05]} d6 {[%emt 0:00:03]} 5. Be2 {[%emt 0:00:07]} O-O {[%emt 0:00:54]} 6. Bg5 {[%emt 0:00:06]} h6 {[%emt 0:11:15]} 7. Be3 {[%emt 0:01:55]} e5 {[%emt 0:00:03]} 8. d5 {[%emt 0:02:10]} Na6 {[%emt 0:00:05]} 9. Qd2 {[%emt 0:02:03]} Kh7 {[%emt 0:02:54]} 10. f3 {[%emt 0:05:26]} Bd7 {[%emt 0:18:02]} 11. g4 {[%emt 0:06:10]} c6 {[%emt 0:06:04]} 12. h4 {[%emt 0:03:05]} cxd5 {[%emt 0:00:57]} 13. cxd5 {[%emt 0:01:25]} h5 {[%emt 0:00:52]} 14. g5 {[%emt 0:19:59]} Ne8 {[%emt 0:00:08]} 15. Bxa6 {[%emt 0:00:04]} bxa6 {[%emt 0:00:02]} 16. Nge2 {[%emt 0:00:47]} Nc7 {[%emt 0:00:46]} 17. Nd1 {[%emt 0:02:39]} f6 {[%emt 0:02:01]} 18. O-O {[%emt 0:05:10]} Qb8 {[%emt 0:03:20]} 19. b3 {[%emt 0:03:06]} fxg5 {[%emt 0:04:18]} 20. hxg5 {[%emt 0:01:46]} Rf7 {[%emt 0:00:56]} 21. Kg2 {[%emt 0:03:22]} Qb7 {[%emt 0:22:00]} 22. Rc1 {[%emt 0:01:45]} Raf8 {[%emt 0:00:17]} 23. a4 {[%emt 0:07:07]} Ne8 {[%emt 0:03:48]} 24. Rc3 {[%emt 0:02:35]} Qb4 {[%emt 0:04:35]} 25. Qc2 {[%emt 0:08:09]} Qb8 {[%emt 0:00:46]} 26. Nb2 {[%emt 0:04:38]} Qd8 {[%emt 0:00:20]} 27. Nd3 {[%emt 0:02:49]} Bh3+ {[%emt 0:00:27]} 28. Kxh3 {[%emt 0:05:17]} Rxf3+ {[%emt 0:00:33]} 29. Rxf3 {[%emt 0:00:10]} Rxf3+ {[%emt 0:00:04]} 30. Kh2 {[%emt 0:00:26]} Rxe3 {[%emt 0:00:05]} 31. Rc8 {[%emt 0:02:28]} Qxg5 {[%emt 0:00:45]} 32. Rxe8 {[%emt 0:00:18]} Qg4 {[%emt 0:00:16]} 33. Ng1 {[%emt 0:00:25]} Qh4+ {[%emt 0:00:15]} 34. Kg2 {[%emt 0:00:07]} Qxe4+ {[%emt 0:00:02]} 0-1

[Event "9th RTU Open 2019"]
[Site "Riga"]
[Date "2019.08.06"]
[Round "2.2"]
[White "Hovhannisyan, Robert"]
[Black "Ioannidis, Evgenios"]
[Result "1/2-1/2"]
[ECO "C72"]
[WhiteElo "2640"]
[BlackElo "2367"]
[Annotator "ChessBase"]
[PlyCount "135"]
[EventDate "2019.08.05"]
[EventType "swiss"]
[EventCountry "LAT"]
[SourceTitle "playchess.com"]
[Source "ChessBase"]
[SourceQuality "1"]
[TimeControl "5400+30"]

1. e4 {[%emt 0:00:00]} e5 {[%emt 0:00:00]} 2. Nf3 {[%emt 0:00:00]} Nc6 {[%emt 0:00:12]} 3. Bb5 {[%emt 0:00:00]} a6 {[%emt 0:00:26]} 4. Ba4 {[%emt 0:00:01]} d6 {[%emt 0:00:50]} 5. O-O {[%emt 0:02:56]} Bd7 {[%emt 0:01:08]} 6. Bxc6 {[%emt 0:02:43]} bxc6 {[%emt 0:01:14]} 7. d4 {[%emt 0:00:04]} exd4 {[%emt 0:00:21]} 8. Qxd4 {[%emt 0:04:42]} c5 {[%emt 0:02:39]} 9. Qd3 {[%emt 0:02:26]} Ne7 {[%emt 0:02:05]} 10. Nc3 {[%emt 0:03:33]} Ng6 {[%emt 0:01:31]} 11. Nd5 {[%emt 0:01:38]} Be7 {[%emt 0:03:50]} 12. Bd2 {[%emt 0:02:00]} O-O {[%emt 0:09:21]} 13. Ba5 {[%emt 0:07:26]} Ra7 {[%emt 0:00:29]} 14. a3 {[%emt 0:08:17]} Bf6 {[%emt 0:09:09]} 15. Rab1 {[%emt 0:02:38]} Re8 {[%emt 0:01:54]} 16. Rfe1 {[%emt 0:02:03]} Ne5 {[%emt 0:18:00]} 17. Nxf6+ {[%emt 0:04:40]} Qxf6 {[%emt 0:00:07]} 18. Nxe5 {[%emt 0:00:04]} Qxe5 {[%emt 0:00:16]} 19. Bc3 {[%emt 0:01:06]} Bb5 {[%emt 0:06:14]} 20. Qd2 {[%emt 0:03:13]} Qh5 {[%emt 0:02:42]} 21. Re3 {[%emt 0:09:00]} Re6 {[%emt 0:04:56]} 22. a4 {[%emt 0:08:13]} Bxa4 {[%emt 0:05:27]} 23. Rh3 {[%emt 0:00:16]} Qg6 {[%emt 0:00:24]} 24. Rg3 {[%emt 0:00:58]} Qh6 {[%emt 0:00:11]} 25. Rxg7+ {[%emt 0:01:44]} Kf8 {[%emt 0:00:59]} 26. Rg5 {[%emt 0:08:00]} Rg6 {[%emt 0:02:58]} 27. f4 {[%emt 0:00:20]} Rxg5 {[%emt 0:01:43]} 28. fxg5 {[%emt 0:00:04]} Qg6 {[%emt 0:01:27]} 29. Re1 {[%emt 0:03:33]} Ra8 {[%emt 0:12:06]} 30. Bf6 {[%emt 0:03:19]} Re8 {[%emt 0:02:24]} 31. b3 {[%emt 0:00:31]} Bc6 {[%emt 0:02:30]} 32. e5 {[%emt 0:00:01]} Kg8 {[%emt 0:00:10]} 33. Qf2 {[%emt 0:04:49]} Re6 {[%emt 0:01:25]} 34. Re2 {[%emt 0:02:46]} Bb5 {[%emt 0:03:21]} 35. Qf3 {[%emt 0:02:04]} dxe5 {[%emt 0:01:16]} 36. Rd2 {[%emt 0:01:05]} e4 {[%emt 0:01:42]} 37. Qe3 {[%emt 0:01:25]} Qf5 {[%emt 0:00:38]} 38. c4 {[%emt 0:03:50]} Bc6 {[%emt 0:00:04]} 39. h3 {[%emt 0:01:37]} Rd6 {[%emt 0:00:42]} 40. Rxd6 {[%emt 0:01:10]} cxd6 {[%emt 0:00:03]} 41. Qg3 {[%emt 0:00:09]} Qe6 {[%emt 0:01:38]} 42. Qh4 {[%emt 0:00:17]} Qf5 {[%emt 0:00:28]} 43. Qg3 {[%emt 0:03:39]} Qe6 {[%emt 0:00:05]} 44. Qe3 {[%emt 0:00:04]} d5 {[%emt 0:00:38]} 45. cxd5 {[%emt 0:00:53]} Qxd5 {[%emt 0:01:09]} 46. Qf4 {[%emt 0:00:54]} Qe6 {[%emt 0:00:22]} 47. Be5 {[%emt 0:00:28]} a5 {[%emt 0:01:20]} 48. Kh2 {[%emt 0:00:33]} e3 {[%emt 0:00:40]} 49. Qxe3 {[%emt 0:00:17]} Qd5 {[%emt 0:00:11]} 50. Qg3 {[%emt 0:00:19]} Kf8 {[%emt 0:00:17]} 51. Bf6 {[%emt 0:00:46]} Ke8 {[%emt 0:00:20]} 52. Qg4 {[%emt 0:02:31]} Qe6 {[%emt 0:00:08]} 53. Qd1 {[%emt 0:00:30]} Qd5 {[%emt 0:00:12]} 54. Qg4 {[%emt 0:00:28]} Qe6 {[%emt 0:00:05]} 55. Qg3 {[%emt 0:00:16]} Kd7 {[%emt 0:00:30]} 56. Be5 {[%emt 0:00:54]} c4 {[%emt 0:01:25]} 57. bxc4 {[%emt 0:00:14]} Qxc4 {[%emt 0:00:04]} 58. Bb2 {[%emt 0:00:54]} a4 {[%emt 0:00:43]} 59. Ba3 {[%emt 0:00:10]} Qd5 {[%emt 0:00:10]} 60. Qg4+ {[%emt 0:00:16]} Qe6 {[%emt 0:00:34]} 61. Qd1+ {[%emt 0:01:03]} Qd5 {[%emt 0:00:14]} 62. Qe2 {[%emt 0:00:15]} Qe4 {[%emt 0:00:18]} 63. Qd1+ {[%emt 0:00:46]} Qd5 {[%emt 0:00:05]} 64. Qf1 {[%emt 0:00:21]} Qe5+ {[%emt 0:00:48]} 65. Kh1 {[%emt 0:00:06]} Ke8 {[%emt 0:01:27]} 66. Qc1 {[%emt 0:00:49]} Qd5 {[%emt 0:01:07]} 67. Qb2 {[%emt 0:00:27]} Qxg5 {[%emt 0:00:40]} 68. Qe2+ {[%emt 0:00:43]} 1/2-1/2

[Event "9th RTU Open 2019"]
[Site "Riga"]
[Date "2019.08.06"]
[Round "2.3"]
[White "Miedema, David"]
[Black "Abasov, Nijat"]
[Result "0-1"]
[ECO "C06"]
[WhiteElo "2371"]
[BlackElo "2641"]
[Annotator "ChessBase"]
[PlyCount "54"]
[EventDate "2019.08.05"]
[EventType "swiss"]
[EventCountry "LAT"]
[SourceTitle "playchess.com"]
[Source "ChessBase"]
[SourceQuality "1"]
[TimeControl "5400+30"]

1. e4 {[%emt 0:00:00]} e6 {[%emt 0:07:11]} 2. d4 {[%emt 0:00:00]} d5 {[%emt 0:00:06]} 3. Nd2 {[%emt 0:03:44]} Nf6 {[%emt 0:05:45]} 4. e5 {[%emt 0:00:04]} Nfd7 {[%emt 0:00:10]} 5. Bd3 {[%emt 0:00:32]} c5 {[%emt 0:00:07]} 6. c3 {[%emt 0:00:04]} Nc6 {[%emt 0:00:07]} 7. Ngf3 {[%emt 0:00:28]} f6 {[%emt 0:12:35]} 8. Ng5 {[%emt 0:05:25]} Ndxe5 {[%emt 0:05:21]} 9. dxe5 {[%emt 0:00:31]} fxg5 {[%emt 0:00:06]} 10. Qh5+ {[%emt 0:00:14]} Kd7 {[%emt 0:00:46]} 11. Nf3 {[%emt 0:00:33]} Qe8 {[%emt 0:06:01]} 12. Qxg5 {[%emt 0:03:08]} Kc7 {[%emt 0:01:05]} 13. h4 {[%emt 0:09:58]} Bd7 {[%emt 0:01:01]} 14. h5 {[%emt 0:00:35]} Rc8 {[%emt 0:02:48]} 15. Qg3 {[%emt 0:13:40]} Ne7 {[%emt 0:11:27]} 16. Be3 {[%emt 0:00:24]} Kb8 {[%emt 0:00:07]} 17. Qf4 {[%emt 0:12:45]} d4 {[%emt 0:05:21]} 18. cxd4 {[%emt 0:01:40]} Nd5 {[%emt 0:00:06]} 19. Qg4 {[%emt 0:02:02]} Bb5 {[%emt 0:00:55]} 20. Rd1 {[%emt 0:06:34]} c4 {[%emt 0:06:16]} 21. Be4 {[%emt 0:05:17]} c3 {[%emt 0:00:08]} 22. Bxd5 {[%emt 0:00:49]} exd5 {[%emt 0:02:38]} 23. bxc3 {[%emt 0:00:37]} Rxc3 {[%emt 0:00:07]} 24. Rc1 {[%emt 0:04:06]} Rxc1+ {[%emt 0:02:37]} 25. Bxc1 {[%emt 0:00:02]} Qc6 {[%emt 0:00:08]} 26. Bd2 {[%emt 0:00:58]} Bb4 {[%emt 0:00:15]} 27. Kd1 {[%emt 0:01:00]} Bd3 {[%emt 0:00:20]} 0-1

[Event "9th RTU Open 2019"]
[Site "Riga"]
[Date "2019.08.06"]
[Round "2.4"]
[White "Suleymenov, Alisher"]
[Black "Bauer, Christian"]
[Result "0-1"]
[ECO "C02"]
[WhiteElo "2368"]
[BlackElo "2646"]
[Annotator "ChessBase"]
[PlyCount "80"]
[EventDate "2019.08.05"]
[EventType "swiss"]
[EventCountry "LAT"]
[SourceTitle "playchess.com"]
[Source "ChessBase"]
[SourceQuality "1"]
[TimeControl "5400+30"]

1. d4 {[%emt 0:00:00]} a6 {[%emt 0:00:00]} 2. e4 {[%emt 0:24:10]} e6 {[%emt 0:00:00]} 3. Nf3 {[%emt 0:08:28]} d5 {[%emt 0:00:00]} 4. e5 {[%emt 0:01:28]} Bd7 {[%emt 0:00:34]} 5. c4 {[%emt 0:05:12]} dxc4 {[%emt 0:00:45]} 6. Bxc4 {[%emt 0:00:03]} Bc6 {[%emt 0:00:12]} 7. O-O {[%emt 0:01:12]} Ne7 {[%emt 0:11:44]} 8. Nc3 {[%emt 0:11:28]} h6 {[%emt 0:07:39]} 9. Be3 {[%emt 0:06:53]} Nd7 {[%emt 0:04:45]} 10. d5 {[%emt 0:02:15]} exd5 {[%emt 0:00:09]} 11. Nxd5 {[%emt 0:00:04]} Nxd5 {[%emt 0:14:47]} 12. Bxd5 {[%emt 0:00:04]} Bxd5 {[%emt 0:00:08]} 13. Qxd5 {[%emt 0:00:04]} Nc5 {[%emt 0:00:07]} 14. Qc4 {[%emt 0:02:23]} Qd3 {[%emt 0:00:26]} 15. Qc1 {[%emt 0:07:29]} Ne6 {[%emt 0:01:57]} 16. Rd1 {[%emt 0:00:32]} Qe4 {[%emt 0:02:27]} 17. Qc3 {[%emt 0:18:06]} Be7 {[%emt 0:15:59]} 18. Nd2 {[%emt 0:00:05]} Qg6 {[%emt 0:10:15]} 19. Qb3 {[%emt 0:01:55]} O-O-O {[%emt 0:02:44]} 20. Nc4 {[%emt 0:02:14]} Qe4 {[%emt 0:10:57]} 21. Na5 {[%emt 0:02:25]} Rxd1+ {[%emt 0:03:17]} 22. Rxd1 {[%emt 0:00:04]} Rd8 {[%emt 0:00:08]} 23. Rc1 {[%emt 0:01:46]} Bg5 {[%emt 0:04:02]} 24. Nc4 {[%emt 0:02:38]} Nd4 {[%emt 0:03:07]} 25. Qd1 {[%emt 0:00:10]} Kb8 {[%emt 0:01:37]} 26. h3 {[%emt 0:01:03]} Bxe3 {[%emt 0:02:20]} 27. fxe3 {[%emt 0:00:07]} Nc6 {[%emt 0:00:18]} 28. Qc2 {[%emt 0:00:41]} Qxc2 {[%emt 0:00:05]} 29. Rxc2 {[%emt 0:00:02]} b5 {[%emt 0:00:38]} 30. Na3 {[%emt 0:01:15]} Rd1+ {[%emt 0:00:44]} 31. Kf2 {[%emt 0:00:39]} Nxe5 {[%emt 0:00:46]} 32. Ke2 {[%emt 0:00:24]} Rg1 {[%emt 0:00:21]} 33. Kf2 {[%emt 0:00:22]} Ra1 {[%emt 0:00:07]} 34. b3 {[%emt 0:00:32]} Nd3+ {[%emt 0:00:21]} 35. Kg3 {[%emt 0:00:03]} Nb4 {[%emt 0:01:05]} 36. Rc5 {[%emt 0:00:01]} Kc8 {[%emt 0:01:17]} 37. Rf5 {[%emt 0:01:12]} Rxa2 {[%emt 0:00:18]} 38. Nb1 {[%emt 0:00:38]} Rb2 {[%emt 0:00:12]} 39. Nc3 {[%emt 0:00:38]} Rxb3 {[%emt 0:00:22]} 40. Ne4 {[%emt 0:00:05]} f6 {[%emt 0:00:26]} 0-1